bitfinex/quotes_ETHUSD_20241123
["timestamp","ask_amount","ask_price","bid_price","bid_amount"]
[1732392542685,0.05608712,3397.1,3396.8,2.94388]
[1732392542885,4.06715,3397.3,3396.8,2.94388]
[1732392543180,0.05603708,3397.0,3396.8,2.94388]
[1732392543417,1.12363,3397.3,3396.8,2.94388]
[1732392543632,0.05598703,3396.9,3396.8,2.94388]
[1732392543795,0.7539,3397.3,3396.8,2.94388]
[1732392543997,0.05574037,3396.9,3396.8,2.94388]
[1732392544638,1.07664981,3397.3,3397.0,2.94373]
[1732392544784,0.7515,3397.7,3397.3,2.94351]
[1732392545132,0.7515,3397.7,3397.5,2.90296959]
[1732392545333,0.7515,3398.2,3397.6,2.94325]
[1732392545513,0.27025928,3398.1,3397.8,2.94306]
[1732392545832,0.14939259,3398.1,3397.8,2.94306]
[1732392545992,1.22366663,3398.2,3397.9,2.94293]
[1732392546391,0.7515,3398.6,3398.1,2.94282]
[1732392546699,0.27034522,3398.5,3398.1,2.94282]
[1732392546889,0.7515,3398.6,3398.1,2.94282]
[1732392547090,0.69775464,3398.5,3397.9,2.94295]
[1732392547285,3.72375626,3398.6,3398.0,2.94289]
[1732392547847,0.7515,3398.6,3398.1,2.94281]
[1732392548190,0.05658668,3398.5,3398.1,2.94281]
[1732392548407,0.43162435,3398.5,3398.1,2.94276]
[1732392548705,0.05658668,3398.5,3398.1,2.94276]
[1732392548892,0.05658668,3398.5,3397.9,3.23638]
[1732392549101,0.05658668,3398.5,3398.2,2.94272]
[1732392549514,0.05658668,3398.5,3398.3,2.94262]
[1732392549692,0.05658668,3398.5,3398.4,2.94256]
[1732392549889,0.8174,3398.9,3398.4,2.9425]
[1732392550095,0.8174,3398.9,3398.4,2.94255]
[1732392550324,0.8174,3398.9,3398.1,0.8292]
[1732392550544,0.8174,3399.4,3398.8,2.94221]
[1732392550721,0.8174,3399.4,3398.4,0.02942088]
[1732392551025,1.41632802,3399.4,3398.9,2.94206]
[1732392551231,1.41632802,3399.4,3398.7,0.8292]
[1732392551539,1.41632802,3399.4,3398.8,2.94221]
[1732392551695,0.05701295,3399.3,3399.0,2.94199]
[1732392552093,3.02859921,3399.3,3398.7,2.94224]
[1732392552391,0.8174,3399.0,3398.1,2.94279]
[1732392552616,2.94219,3398.9,3398.1,2.94279]
[1732392552817,2.99900303,3398.9,3398.1,2.94279]
[1732392553140,0.6758403,3398.8,3398.2,2.94272]
[1732392553426,0.73260335,3398.8,3398.3,2.94262]
[1732392553639,0.05676305,3398.8,3398.3,2.94262]
[1732392554146,0.05671306,3398.7,3398.3,2.94262]
[1732392554332,0.8174,3399.0,3398.1,2.94279]
[1732392554496,0.05666306,3398.6,3397.9,2.94299]
[1732392554691,0.8174,3399.0,3398.5,2.9424]
[1732392555215,0.02980626,3398.9,3398.2,2.94268]
[1732392555425,3.02874929,3398.9,3398.2,2.94268]
[1732392555623,0.38461493,3398.8,3398.2,2.94268]
[1732392555927,0.05671306,3398.7,3398.0,2.94288]
[1732392556133,0.05671306,3398.7,3398.6,2.94238]
[1732392556307,0.8174,3399.0,3398.6,2.94238]
[1732392556494,0.8174,3399.0,3398.8,2.9422]
[1732392556696,0.8174,3399.0,3398.9,2.94212]
[1732392557120,0.8174,3399.0,3398.8,2.9422]
[1732392557983,0.59892802,3399.4,3398.9,2.94211]
[1732392558283,0.59892802,3399.4,3399.3,2.94178]
[1732392558634,0.59892802,3399.4,3399.3,5.94178]
[1732392559456,0.65614928,3399.4,3399.3,5.94178]
[1732392559785,0.59892802,3399.4,3399.3,5.94178]
[1732392560576,0.65618318,3399.4,3399.3,5.94178]
[1732392561101,0.59892802,3399.4,3399.3,3.0]
[1732392561382,0.59892802,3399.4,3398.6,2.94234]
[1732392561383,0.65619298,3399.4,3398.9,2.94204]
[1732392561734,0.65619298,3399.4,3398.8,2.94219]
[1732392561735,0.02980626,3399.3,3398.8,3.0]
[1732392561937,0.05721047,3399.3,3398.8,3.0]
[1732392562276,0.05721047,3399.3,3398.8,2.94218]
[1732392562442,3.7697,3399.5,3398.9,3.0]
[1732392562635,3.7697,3399.5,3398.9,2.94211]
[1732392562636,0.73135507,3399.4,3398.9,2.94211]
[1732392562844,0.73135507,3399.4,3398.6,2.94233]
[1732392562845,2.94179,3399.3,3398.6,2.94233]
[1732392563139,3.77011,3399.1,3398.2,2.94264]
[1732392563386,2.94237,3398.7,3397.7,0.8258]
[1732392563535,0.02980626,3399.0,3397.7,2.9431]
[1732392563536,0.8281,3398.4,3397.7,2.9431]
[1732392563738,0.38003863,3398.3,3397.7,2.9431]
[1732392563935,0.05667894,3398.3,3398.0,2.94288]
[1732392564141,0.05667894,3398.3,3397.8,2.94306]
[1732392565944,0.38273389,3398.2,3397.7,3.0]
[1732392566138,0.38273389,3398.2,3397.4,2.94341]
[1732392566139,0.8281,3398.0,3397.4,2.94341]
[1732392566341,0.02980626,3397.9,3397.4,2.94341]
[1732392566648,0.02980626,3397.9,3396.9,0.8258]
[1732392566649,0.05641031,3397.9,3397.2,2.94358]
[1732392566852,0.05641031,3397.9,3397.3,2.9435]
[1732392567051,0.05641031,3397.9,3396.9,0.8258]
[1732392567357,0.05641031,3397.9,3397.2,2.94353]
[1732392567552,0.05641031,3397.9,3397.3,2.94343]
[1732392569241,2.99946031,3397.9,3397.2,3.0]
[1732392569589,0.38274203,3397.8,3397.3,2.94343]
[1732392569955,0.05625299,3397.7,3397.3,2.94343]
[1732392570276,0.05625299,3397.7,3397.0,2.94375]
[1732392570277,0.05620296,3397.6,3397.0,2.94375]
[1732392570580,0.05620296,3397.6,3396.9,0.8258]
[1732392570785,0.05620296,3397.6,3397.2,2.94354]
[1732392571078,3.77102,3398.0,3397.2,2.94354]
[1732392571238,0.05613937,3397.5,3397.2,2.94354]
[1732392571439,0.671381,3397.9,3397.4,2.94342]
[1732392571675,0.05628943,3397.8,3397.2,0.02943382]
[1732392571886,0.05628943,3397.8,3397.4,2.94338]
[1732392572063,0.8281,3398.0,3397.2,2.94358]
[1732392572272,2.94301,3397.9,3397.2,2.94358]
[1732392572474,0.43638106,3397.8,3397.2,2.94358]
[1732392572641,0.43638106,3397.8,3397.3,2.9435]
[1732392572845,0.43638106,3397.8,3397.4,2.9434]
[1732392573078,0.05628943,3397.8,3397.3,2.9435]
[1732392573319,0.8281,3398.0,3397.5,2.94329]
[1732392573473,0.05623941,3397.7,3397.5,2.94329]
[1732392573677,0.8281,3398.0,3397.5,2.94329]
[1732392573999,0.05618939,3397.6,3397.5,2.94329]
[1732392574207,0.377084,3397.9,3397.5,2.94329]
[1732392574406,0.05618939,3397.6,3397.5,3.01536526]
[1732392574591,0.377084,3397.9,3397.5,3.01536526]
[1732392574798,0.05618939,3397.6,3397.5,3.01536526]
[1732392575109,0.8281,3398.0,3397.6,2.94324]
[1732392575317,0.8281,3398.0,3397.6,2.94325]
[1732392575478,0.8281,3398.0,3397.7,2.9431]
[1732392576075,0.7811,3398.3,3397.8,2.94306]
[1732392576507,0.7811,3398.3,3397.7,2.94315]
[1732392576807,0.49640593,3398.2,3397.6,2.94325]
[1732392577025,0.7811,3398.3,3397.7,2.9431]
[1732392577314,0.0565121,3398.2,3397.7,2.9431]
[1732392577616,0.0565121,3398.2,3397.7,2.94316]
[1732392578673,0.0565121,3398.2,3397.5,3.69883]
[1732392578881,0.43729105,3398.1,3397.5,2.94333]
[1732392579086,0.49376671,3398.1,3397.6,2.94323]
[1732392579275,0.49376671,3398.1,3397.7,0.2934]
[1732392579576,0.42175967,3398.0,3397.7,0.2934]
[1732392579784,0.47818532,3398.0,3397.7,0.2934]
[1732392581045,0.05642565,3398.0,3397.7,3.23654]
[1732392581367,0.05642565,3398.0,3397.9,2.94299]
[1732392581544,0.7811,3398.3,3397.9,2.94299]
[1732392581761,0.7811,3398.3,3398.0,2.94283]
[1732392582245,0.7811,3398.7,3398.3,2.94257]
[1732392583003,0.7811,3398.7,3398.1,2.94276]
[1732392583203,0.02980626,3398.6,3398.1,2.94276]
[1732392583450,0.7811,3398.7,3398.2,2.94272]
[1732392583745,0.37530363,3398.6,3398.2,2.94265]
[1732392583961,0.37530363,3398.6,3398.3,2.94263]
[1732392584121,0.7811,3398.7,3398.3,2.94263]
[1732392584464,0.02980626,3398.6,3398.3,2.94263]
[1732392584613,0.7811,3398.7,3398.3,2.94263]
[1732392585017,0.05673019,3398.6,3398.3,2.94263]
[1732392585237,0.05673019,3398.6,3398.1,2.94277]
[1732392585411,0.37801102,3398.5,3398.0,3.23628]
[1732392585607,0.02980626,3398.4,3398.1,2.94275]
[1732392585835,0.02980626,3398.5,3398.1,2.94275]
[1732392586150,0.46439659,3398.5,3398.1,2.94275]
[1732392586454,0.46439659,3398.5,3397.4,3.69884]
[1732392586455,0.7811,3398.2,3397.7,2.94316]
[1732392586604,0.7811,3398.2,3397.5,3.23668]
[1732392586605,2.97263626,3398.1,3397.5,0.2934]
[1732392586816,0.66964063,3398.0,3397.5,0.2934]
[1732392587020,0.66964063,3398.0,3397.1,0.7555]
[1732392587021,0.81090626,3397.9,3397.2,0.2934]
[1732392587222,2.9431,3397.8,3397.2,0.2934]
[1732392587516,0.05629896,3397.7,3397.2,3.23699]
[1732392587717,3.72415,3397.9,3397.2,3.23699]
[1732392587949,0.05624894,3397.6,3397.2,3.23699]
[1732392588154,0.6667,3397.8,3397.1,3.2934]
[1732392588336,0.05619892,3397.5,3397.1,3.2934]
[1732392588541,0.6667,3397.8,3397.1,3.2934]
[1732392588853,0.05614889,3397.4,3397.3,0.2934]
[1732392589061,0.439085,3397.7,3397.3,0.2934]
[1732392589352,0.439085,3397.7,3397.0,0.2934]
[1732392589353,0.05624894,3397.6,3397.0,0.2934]
[1732392589561,0.05624894,3397.6,3397.1,3.23701]
[1732392589754,2.94312,3397.8,3397.1,3.23701]
[1732392590057,0.05612729,3397.5,3397.1,3.23701]
[1732392590238,3.72415,3397.9,3397.2,2.94357]
[1732392590438,0.0560765,3397.4,3397.2,2.94358]
[1732392590628,3.315505,3397.8,3397.2,2.94358]
[1732392590827,0.05602647,3397.3,3397.2,2.94358]
[1732392591315,3.315505,3397.8,3397.2,2.94358]
[1732392591560,0.05602647,3397.3,3396.9,0.2934]
[1732392591872,0.372415,3397.8,3396.9,0.2934]
[1732392591873,0.372415,3397.8,3397.2,2.9436]
[1732392592221,0.46884971,3397.7,3397.2,2.9436]
[1732392593120,0.46884971,3397.7,3397.1,3.23706]
[1732392593356,0.46884971,3397.7,3397.2,2.94358]
[1732392594221,0.49865597,3397.7,3397.1,0.2934]
[1732392594423,3.44182597,3397.7,3397.1,0.2934]
[1732392594859,3.75812,3397.5,3396.8,0.2934]
[1732392595162,2.9995065,3397.4,3396.8,0.2934]
[1732392595358,0.0560765,3397.4,3396.9,3.23725]
[1732392596372,0.48642319,3397.4,3396.9,3.23725]
[1732392596740,0.48642319,3397.4,3396.9,2.94385]
[1732392598141,3.42984319,3397.4,3396.8,3.23732]
[1732392599478,0.48642319,3397.4,3396.8,3.23732]
[1732392599797,0.48642319,3397.4,3396.9,2.94385]
[1732392600250,0.51622945,3397.4,3396.8,3.23727]
[1732392600451,0.48642319,3397.4,3396.9,2.94385]
[1732392600646,0.48642319,3397.4,3396.8,3.23734]
[1732392600647,3.45964945,3397.4,3396.8,3.23734]
[1732392601046,3.45964945,3397.4,3396.8,0.2934]
[1732392601247,3.45964945,3397.4,3396.8,3.23734]
[1732392601747,0.48642319,3397.4,3396.8,2.94386]
[1732392601947,0.48642319,3397.4,3396.9,3.23724]
[1732392603528,0.48642319,3397.4,3397.1,2.94368]
[1732392603825,0.0560765,3397.4,3397.3,2.94351]
[1732392604325,0.0560765,3397.4,3397.1,2.94362]
[1732392604624,0.0560765,3397.4,3397.3,2.94351]
[1732392605147,0.8141,3398.3,3397.3,3.32283436]
[1732392605326,0.8141,3398.3,3397.4,1.1207]
[1732392605528,0.05462301,3398.2,3398.0,2.94288]
[1732392605888,2.94291,3398.0,3397.4,3.23682]
[1732392606085,0.60130041,3398.8,3397.4,3.23682]
[1732392606086,3.75721,3397.8,3397.4,0.2934]
[1732392606392,3.75721,3397.8,3397.0,2.94375]
[1732392606393,2.99759294,3397.7,3397.2,0.2934]
[1732392606932,0.0841792,3397.7,3397.2,0.2934]
[1732392607230,0.46830012,3397.7,3397.2,0.2934]
[1732392607431,0.46830012,3397.7,3396.8,3.0]
[1732392607432,0.05437294,3397.7,3397.3,1.1207]
[1732392607599,0.05437294,3397.7,3397.6,5.94325]
[1732392607804,0.8141,3398.7,3397.8,0.2934]
[1732392608014,2.94179,3399.3,3398.6,2.94237]
[1732392608189,1.6723373,3399.2,3398.6,2.94237]
[1732392608393,1.402441,3399.2,3399.1,2.94195]
[1732392608589,0.8141,3399.7,3399.1,2.94195]
[1732392608822,0.8141,3399.7,3399.1,2.94187]
[1732392608823,0.05339664,3399.2,3399.1,2.94187]
[1732392609004,1.189637,3399.7,3399.2,2.94185]
[1732392609209,0.02980626,3399.6,3399.2,2.94185]
[1732392609523,0.02980626,3399.6,3399.0,2.94203]
[1732392609731,0.02980626,3399.6,3398.6,3.76968]
[1732392609732,0.02980626,3399.6,3398.7,3.0]
[1732392609897,0.6015232,3399.6,3399.4,2.94165]
[1732392610518,0.6015232,3399.6,3398.7,3.0]
[1732392610519,0.02980626,3399.5,3398.9,2.94208]
[1732392610766,0.43868595,3399.4,3399.0,2.94203]
[1732392610909,0.43868595,3399.4,3398.8,3.0]
[1732392611228,0.43868595,3399.4,3398.9,3.0]
[1732392611538,0.02980626,3399.5,3398.9,3.0]
[1732392611726,3.5430732,3399.6,3398.9,3.0]
[1732392611727,0.6015232,3399.6,3398.9,2.94204]
[1732392611912,0.6015232,3399.6,3399.0,2.94196]
[1732392612245,3.5430732,3399.6,3398.9,2.94212]
[1732392612409,0.43571732,3399.5,3398.9,2.94212]
[1732392612608,0.43571732,3399.5,3398.9,2.94211]
[1732392613004,0.43571732,3399.5,3399.0,2.94197]
[1732392613201,0.6015232,3399.6,3399.3,2.94176]
[1732392613646,0.6015232,3399.6,3399.5,2.9416]
[1732392614222,0.6015232,3399.6,3399.3,2.94176]
[1732392615142,0.6015232,3399.6,3399.1,2.94194]
[1732392615446,0.02980626,3399.5,3399.1,2.94194]
[1732392615953,0.6015232,3399.6,3399.2,2.94183]
[1732392615954,0.63132946,3399.6,3399.2,2.94183]
[1732392616106,0.63132946,3399.6,3398.6,0.8273]
[1732392616418,0.63132946,3399.6,3399.2,2.94181]
[1732392616749,0.6015232,3399.6,3399.5,2.9416]
[1732392618537,0.6015232,3399.6,3399.3,3.73727]
[1732392619104,0.6015232,3399.6,3399.2,3.0]
[1732392619234,0.95879315,3399.6,3399.3,0.2934]
[1732392619662,0.6015232,3399.6,3399.3,0.2934]
[1732392620255,3.63132946,3399.6,3398.9,2.9421]
[1732392620428,3.63132946,3399.6,3399.0,0.2934]
[1732392620638,3.63132946,3399.6,3398.1,0.7955]
[1732392620639,0.8133,3398.8,3398.1,0.7955]
[1732392620836,2.94241,3398.6,3397.8,2.94304]
[1732392621377,2.94241,3398.6,3397.8,0.2934]
[1732392621546,0.05200674,3398.5,3397.8,3.2364]
[1732392622194,2.94262,3398.4,3396.9,0.7955]
[1732392622374,2.94262,3398.4,3397.4,0.2934]
[1732392622375,0.8133,3398.2,3397.4,0.2934]
[1732392622563,0.02980626,3398.3,3397.8,2.94302]
[1732392622564,0.05186348,3398.3,3397.8,2.94302]
[1732392622876,0.8133,3398.8,3398.0,2.94284]
[1732392623086,5.94179,3399.3,3398.4,2.94248]
[1732392623245,0.8133,3399.3,3398.5,2.9424]
[1732392623842,0.8133,3399.3,3398.4,0.2934]
[1732392624074,0.8133,3399.3,3398.5,2.94243]
[1732392624289,0.38133,3399.2,3398.4,3.23595]
[1732392624864,3.32322,3399.2,3398.4,0.2934]
[1732392625050,0.02980626,3399.1,3398.4,0.2934]
[1732392625272,0.41663263,3399.0,3398.2,3.73821]
[1732392625561,0.8133,3398.8,3398.0,0.2934]
[1732392625875,2.9424,3398.6,3397.9,0.7955]
[1732392626048,2.94275,3398.2,3397.6,0.7955]
[1732392626251,0.8133,3398.0,3397.1,3.73911]
[1732392626557,0.05166345,3397.9,3397.3,2.94344]
[1732392627066,0.05166345,3397.9,3397.1,3.73911]
[1732392627263,0.05166345,3397.9,3397.3,0.2934]
[1732392627471,0.05166345,3397.9,3397.3,3.2934]
[1732392627644,0.05166345,3397.9,3397.3,6.23688]
[1732392627842,0.05166345,3397.9,3397.3,3.2934]
[1732392628047,0.05166345,3397.9,3397.4,3.2934]
[1732392628280,0.05166345,3397.9,3397.4,0.2934]
[1732392628671,0.8133,3398.0,3397.4,0.2934]
[1732392628971,0.05155645,3397.9,3397.5,3.0]
[1732392629142,3.75594,3398.3,3397.5,3.0]
[1732392629345,0.05150643,3397.8,3397.5,3.0]
[1732392629546,0.8133,3398.3,3397.6,0.0294299]
[1732392629747,0.05145641,3397.7,3397.3,3.0]
[1732392629983,2.94286,3398.1,3397.3,3.0]
[1732392630195,0.05140639,3397.6,3397.3,3.0]
[1732392630547,0.84310626,3398.3,3397.1,0.7955]
[1732392630744,0.84310626,3398.3,3397.4,3.0]
[1732392630745,0.05135636,3397.5,3397.4,3.0]
[1732392630973,2.9429,3398.0,3397.1,6.73912]
[1732392631252,0.05129943,3397.5,3397.1,6.73912]
[1732392631472,2.9429,3398.0,3397.1,6.73912]
[1732392631679,0.0512494,3397.4,3397.1,6.73912]
[1732392631992,0.8133,3398.3,3397.4,3.0]
[1732392632198,3.75595,3398.3,3397.4,3.0]
[1732392632393,0.08193644,3398.2,3397.6,3.0]
[1732392632693,3.02468644,3398.2,3397.4,3.0]
[1732392632890,2.94284,3398.1,3397.2,5.94359]
[1732392633051,2.94315,3397.8,3397.1,0.7955]
[1732392633402,2.94342,3397.4,3396.8,0.787]
[1732392633554,2.94342,3397.4,3396.5,0.787]
[1732392633865,2.94366,3397.2,3396.3,2.94436]
[1732392634059,0.8298,3397.3,3396.5,2.94416]
[1732392634365,0.8298,3397.3,3396.5,2.9442]
[1732392634564,0.08142616,3397.2,3396.5,2.9442]
[1732392634765,0.08142616,3397.2,3396.3,2.94432]
[1732392634966,3.02503616,3397.2,3396.2,0.787]
[1732392635291,2.94383,3397.0,3396.2,0.787]
[1732392635594,2.94394,3396.8,3396.2,0.787]
[1732392635794,3.62200724,3396.9,3396.2,0.787]
[1732392635968,0.08115231,3396.7,3396.2,0.787]
[1732392636169,0.8298,3397.3,3396.2,0.787]
[1732392636376,0.8298,3397.3,3396.0,2.94464]
[1732392636377,0.08110315,3396.6,3396.0,2.94464]
[1732392636690,2.9436,3397.2,3396.1,2.9445]
[1732392636850,0.08105399,3396.5,3396.2,3.0]
[1732392637076,0.37734,3397.1,3396.2,3.0]
[1732392637498,0.08126558,3397.0,3396.2,3.0]
[1732392637719,0.50744676,3397.0,3396.2,3.0]
[1732392638327,0.08126558,3397.0,3396.2,3.0]
[1732392638615,0.08126558,3397.0,3396.3,0.02944057]
[1732392638818,3.77332,3397.3,3396.3,0.02944057]
[1732392639020,0.08111921,3396.9,3396.3,0.02944057]
[1732392639179,3.77332,3397.3,3396.3,0.02944057]
[1732392639381,0.08107006,3396.8,3396.3,0.02944057]
[1732392639582,3.615277,3397.2,3396.3,0.02944057]
[1732392639882,0.0810209,3396.7,3396.3,0.02944057]
[1732392640220,0.08097478,3396.6,3396.3,0.02944057]
[1732392640425,3.615277,3397.2,3396.5,2.94419]
[1732392640426,0.671667,3397.2,3396.5,2.94419]
[1732392640597,0.8298,3397.3,3396.6,2.97354808]
[1732392640923,0.8298,3397.8,3396.8,2.94393]
[1732392641134,0.8298,3397.8,3397.0,2.94371]
[1732392642518,0.8298,3397.8,3396.9,0.02943545]
[1732392642519,0.8298,3397.8,3397.1,2.94368]
[1732392642720,0.677279,3397.7,3397.2,2.94359]
[1732392643023,0.8298,3397.8,3397.2,2.94359]
[1732392643181,0.08146625,3397.6,3397.3,0.02943358]
[1732392643381,0.8298,3398.1,3397.5,2.94334]
[1732392644181,0.8298,3398.1,3397.6,2.94323]
[1732392645382,0.02980626,3398.0,3397.3,2.94349]
[1732392645720,0.02980626,3398.0,3397.5,2.94333]
[1732392646399,0.8298,3398.1,3397.5,2.94333]
[1732392646933,0.08166275,3398.0,3397.5,2.94333]
[1732392648116,0.08166275,3398.0,3397.7,2.94308]
[1732392648678,0.08166275,3398.0,3397.5,2.89333]
[1732392648914,0.08166275,3398.0,3397.9,2.94299]
[1732392649290,0.8298,3398.7,3397.9,2.94299]
[1732392649508,0.85960626,3398.7,3397.9,2.94299]
[1732392649906,0.079366,3398.6,3398.0,2.94289]
[1732392650086,0.45953963,3398.6,3398.0,2.94289]
[1732392650330,0.45953963,3398.6,3397.7,2.9431]
[1732392650534,0.85070626,3398.5,3397.4,3.0]
[1732392650829,0.8209,3398.2,3397.4,3.0]
[1732392651038,0.40616726,3398.1,3397.1,2.94366]
[1732392651209,0.40616726,3398.1,3397.0,0.8263]
[1732392651210,2.94299,3397.9,3397.0,2.94376]
[1732392651537,2.97279626,3397.9,3397.0,2.94376]
[1732392651700,0.07897309,3397.8,3397.0,2.94376]
[1732392652099,2.94331,3397.6,3396.6,2.94411]
[1732392652305,0.8209,3397.4,3396.4,3.77058]
[1732392652526,2.94362,3397.2,3396.2,2.94442]
[1732392652731,0.02980626,3397.1,3396.3,2.94437]
[1732392653028,0.07862913,3397.1,3396.3,2.94437]
[1732392653261,0.8209,3397.0,3396.1,0.8263]
[1732392653534,0.89947998,3397.0,3396.1,0.8263]
[1732392653847,0.8209,3396.8,3395.9,0.1515279]
[1732392654009,0.8209,3396.2,3395.9,0.1515279]
[1732392654212,0.8209,3396.2,3394.4,0.1]
[1732392654213,0.8209,3395.7,3395.0,0.02944518]
[1732392654436,0.8209,3395.7,3394.6,2.94577]
[1732392654753,0.7779,3395.5,3394.1,2.97570167]
[1732392654960,0.7779,3395.2,3394.3,2.94609]
[1732392655146,0.7779,3395.2,3394.2,0.02945362]
[1732392655147,3.75304626,3395.2,3394.2,2.94615]
[1732392655351,0.80770626,3395.2,3394.1,2.94621]
[1732392655540,2.94542,3395.1,3394.0,2.94629]
[1732392655872,2.94542,3395.1,3393.6,0.02945719]
[1732392655873,0.0774682,3395.0,3394.4,2.94595]
[1732392656052,0.7779,3395.2,3394.5,0.02945932]
[1732392656260,0.7779,3395.2,3393.6,2.94666]
[1732392656261,0.7779,3394.6,3393.5,3.24119637]
[1732392656457,0.7779,3394.6,3393.6,2.94671]
[1732392656659,0.07712453,3394.5,3393.9,2.94643]
[1732392657086,0.07712453,3394.5,3393.6,2.94671]
[1732392657270,0.07712453,3394.5,3393.5,0.29445637]
[1732392657271,0.07712453,3394.5,3393.5,3.24124637]
[1732392657468,0.07712453,3394.5,3392.8,0.2934]
[1732392657674,3.02307453,3394.5,3393.4,2.94689]
[1732392657893,0.38376194,3394.4,3393.5,2.9468]
[1732392658194,0.07706993,3394.4,3393.6,2.9467]
[1732392658406,0.11390099,3394.4,3393.2,2.94705]
[1732392658586,0.38009299,3394.3,3393.2,2.94705]
[1732392658765,2.94615,3394.3,3393.2,2.94699]
[1732392658966,0.7779,3394.1,3393.0,2.94722]
[1732392659287,0.11369776,3394.0,3393.1,2.94713]
[1732392659669,0.07686455,3394.0,3393.4,2.94687]
[1732392659774,0.11369775,3394.0,3393.4,2.94687]
[1732392660094,0.11369775,3394.0,3393.1,2.94712]
[1732392660294,0.11369775,3394.0,3392.6,3.8023]
[1732392660475,0.11369775,3394.0,3393.3,2.94696]
[1732392660476,0.07686455,3394.0,3393.3,2.94696]
[1732392660676,0.07686455,3394.0,3393.4,2.94681]
[1732392660916,0.7779,3394.1,3393.4,2.94681]
[1732392661110,0.07644338,3393.9,3393.7,2.94656]
[1732392661408,0.7779,3394.1,3393.7,2.94656]
[1732392661765,0.7779,3394.1,3393.5,2.9468]
[1732392662317,0.07649108,3394.0,3393.5,2.9468]
[1732392662469,0.07649108,3394.0,3392.8,8.84223]
[1732392662832,0.07649108,3394.0,3392.6,0.8023]
[1732392662833,0.7779,3394.1,3393.9,2.94646]
[1732392663007,0.7779,3394.1,3393.8,2.94654]
[1732392663222,0.7779,3394.5,3393.9,2.94639]
[1732392663415,0.7779,3394.5,3394.0,2.94637]
[1732392663909,0.7779,3394.5,3393.5,3.74904]
[1732392664094,0.7779,3394.5,3393.9,2.94642]
[1732392664470,0.81472655,3394.5,3393.7,2.94663]
[1732392664790,0.7779,3394.5,3393.7,2.94656]
[1732392665177,0.7779,3394.5,3393.6,3.0]
[1732392665365,0.7779,3394.5,3393.6,2.94671]
[1732392665566,0.076688,3394.4,3393.6,2.94671]
[1732392666125,0.076688,3394.4,3393.5,2.94674]
[1732392666422,0.7779,3394.2,3393.0,2.94716]
[1732392666567,0.7779,3393.9,3392.8,2.94741]
[1732392666877,0.7779,3393.9,3392.7,0.8023]
[1732392666878,0.0763926,3393.8,3393.1,2.94713]
[1732392667148,0.0763926,3393.8,3392.9,2.94728]
[1732392667301,0.0763926,3393.8,3392.8,2.94737]
[1732392667498,0.0763926,3393.8,3393.3,2.94697]
[1732392668029,0.0763926,3393.8,3393.7,2.94663]
[1732392668348,0.7779,3394.2,3393.9,2.9464]
[1732392668818,0.07654031,3394.1,3393.8,2.9465]
[1732392669034,0.7779,3394.6,3394.0,2.94637]
[1732392669231,0.03682738,3394.5,3393.4,2.94682]
[1732392669411,3.72404,3394.3,3393.5,3.0]
[1732392669586,0.07658954,3394.2,3393.6,2.94666]
[1732392669780,0.07658954,3394.2,3393.8,2.94651]
[1732392669986,0.7779,3394.3,3393.8,2.94651]
[1732392670311,0.7779,3394.3,3393.6,2.94666]
[1732392670312,0.07658954,3394.2,3393.6,2.94666]
[1732392670893,0.07658954,3394.2,3393.8,2.94653]
[1732392671116,0.07658954,3394.2,3393.5,2.94681]
[1732392671117,0.07658954,3394.2,3393.7,2.94663]
[1732392671284,0.07658954,3394.2,3393.5,2.94681]
[1732392671813,0.03683094,3394.1,3393.5,2.94681]
[1732392672122,2.94643,3394.0,3393.2,3.0]
[1732392672432,0.03683094,3394.1,3393.1,2.94714]
[1732392672433,1.11898505,3393.9,3393.1,2.94709]
[1732392672612,0.88944184,3393.9,3392.6,2.94759]
[1732392672919,0.88944184,3393.9,3393.1,2.94711]
[1732392673120,0.88944184,3393.9,3393.2,2.94703]
[1732392673425,0.88944184,3393.9,3392.9,2.94731]
[1732392673426,3.83591184,3393.9,3392.9,2.94731]
[1732392673604,2.94658,3393.8,3392.9,2.94731]
[1732392673799,0.07634335,3393.7,3392.9,2.94731]
[1732392674133,0.07634335,3393.7,3392.8,3.0]
[1732392674417,0.813,3393.9,3392.6,3.0]
[1732392674664,0.07629411,3393.6,3393.1,2.94714]
[1732392674838,3.75947,3393.9,3393.1,2.94714]
[1732392675041,0.07624486,3393.5,3393.1,2.94714]
[1732392675247,0.375942,3393.8,3393.1,2.94714]
[1732392675444,0.0761956,3393.4,3393.1,2.94714]
[1732392675628,2.94665,3393.7,3392.9,2.94732]
[1732392675833,0.07614635,3393.3,3392.6,3.0]
[1732392676010,3.322552,3393.8,3392.7,2.94747]
[1732392676011,0.4135592,3393.7,3392.7,2.94747]
[1732392676214,0.07625797,3393.6,3393.0,2.94724]
[1732392676576,2.94699,3393.3,3392.5,3.0991979]
[1732392676752,0.88920872,3393.5,3392.5,3.0991979]
[1732392676976,0.07606096,3393.2,3392.8,2.94735]
[1732392677121,0.07615947,3393.4,3392.5,0.1515279]
[1732392677314,0.813,3393.5,3392.9,2.94726]
[1732392677644,0.07611716,3393.4,3393.0,2.94723]
[1732392677943,0.07611716,3393.4,3393.1,2.94709]
[1732392678389,0.07611716,3393.4,3393.3,2.94698]
[1732392678519,0.813,3393.5,3392.9,2.94733]
[1732392678713,0.07611485,3393.4,3393.2,2.94706]
[1732392679521,0.07611485,3393.4,3393.3,2.94698]
[1732392679885,0.813,3393.9,3393.6,2.94663]
[1732392680385,0.813,3393.9,3393.4,2.94688]
[1732392680587,0.88958954,3394.2,3393.7,2.94662]
[1732392681309,1.27314849,3394.2,3393.6,2.94671]
[1732392681538,0.88958954,3394.2,3393.6,2.94671]
[1732392681820,0.88958954,3394.2,3393.8,2.94652]
[1732392682026,0.88958954,3394.2,3394.1,2.94628]
[1732392682422,0.88958954,3394.2,3393.6,2.94671]
[1732392682624,0.92642222,3394.2,3393.6,2.94671]